fUSD/lending_fUSD_20250507
["ID","MTS","AMOUNT","RATE_DAILY","PERIOD"]
[360241153,1746652543703,-160.0,0.00043885,30]
[360241154,1746652543740,-160.0,0.00043885,30]
[360241155,1746652543775,-160.0,0.00043885,30]
[360241156,1746652543810,-160.0,0.00043885,30]
[360241157,1746652543845,-160.0,0.00043885,30]
[360241158,1746652543879,-160.0,0.00043885,30]
[360241159,1746652543916,-160.0,0.00043885,30]
[360241160,1746652543951,-160.0,0.00043885,30]
[360241161,1746652543987,-160.0,0.00043885,30]
[360241162,1746652544023,-160.0,0.00043885,30]
[360241163,1746652544060,-160.0,0.00043885,30]
[360241164,1746652544097,-160.0,0.00043885,30]
[360241165,1746652544132,-160.0,0.00043885,30]
[360241166,1746652544168,-160.0,0.00043885,30]
[360241167,1746652544202,-150.0,0.00043885,30]
[360241168,1746652544238,-50000.0,0.00043885,30]
[360241169,1746652544274,-50000.0,0.00043885,31]
[360241170,1746652544311,-50000.0,0.00043885,32]
[360241171,1746652544349,-50000.0,0.00043885,33]
[360241172,1746652544387,-50000.0,0.00043885,34]
[360241173,1746652544423,-377.68251343,0.00043885,30]
[360241174,1746652544458,-238.85137102,0.00043885,30]
[360241175,1746652544493,-840.95808046,0.00043885,120]
[360241176,1746652544528,-267.23222717,0.00043885,120]
[360241177,1746652544564,-280.31054746,0.00043885,120]
[360241178,1746652544601,-1274.22262033,0.00043885,30]
[360241179,1746652544637,-1675.27213797,0.00043885,120]
[360241180,1746652544673,-162.68413892,0.00043885,120]
[360241181,1746652544710,-726.4733324,0.00043885,90]
[360241182,1746652544748,-715.61115757,0.00043885,120]
[360241183,1746652544784,-291.96875164,0.00043885,60]
[360241184,1746652544819,-215.21238075,0.00043885,30]
[360241185,1746652544856,-260.34144267,0.00043885,120]
[360241186,1746652545058,-1401.78208682,0.00043885,120]
[360241187,1746652545096,-255.86579084,0.00043885,120]
[360241188,1746652545134,-220.68463101,0.00043885,120]
[360241189,1746652545170,-266.61745818,0.00043885,60]
[360241190,1746652545207,-20000.0,0.00043885,120]
[360241191,1746652545244,-291.68748345,0.00043885,120]
[360241192,1746652545282,-242.63550898,0.00043885,30]
[360241193,1746652545320,-468.44074417,0.00043885,120]
[360241194,1746652545358,-1162.31514165,0.00043885,120]
[360241195,1746652545396,-685.26590043,0.00043885,120]
[360241196,1746652545434,-778.1968055,0.00043885,120]
[360241197,1746652545470,-168.83661564,0.00043885,120]
[360241198,1746652545505,-154.16914946,0.00043885,30]
[360241199,1746652545541,-200.65007516,0.00043885,30]
[360241200,1746652545578,-538.2323018,0.00043885,30]
[360241201,1746652545615,-1168.15956638,0.00043885,120]
[360241202,1746652545654,-152.0185633,0.00043885,60]
[360241203,1746652545690,-225.9505437,0.00043885,30]
[360241204,1746652545727,-226.97172857,0.00043885,30]
[360241205,1746652545763,-1324.68513867,0.00043885,120]
[360241206,1746652545799,-435.72049176,0.00043885,120]
[360241207,1746652545834,-1942.88573647,0.00043885,120]
[360241208,1746652545870,-174.02338542,0.00043885,30]
[360241209,1746652545905,-1629.25530308,0.00043885,30]
[360241210,1746652545941,-233.43915928,0.00043885,120]
[360241211,1746652545975,-618.34034847,0.00043885,120]
[360241212,1746652546010,-1599.72706218,0.00043885,120]
[360241213,1746652546046,-26203.33363373,0.00043885,120]
[360241214,1746652546081,-1024.15852805,0.00043885,120]
[360241215,1746652546117,-301.16727964,0.00043885,120]
[360241216,1746652546152,-177.79736767,0.00043885,120]
[360241217,1746652546188,-1097.55614119,0.00043885,120]
[360241218,1746652546224,-484.03927814,0.00043885,120]
[360241219,1746652546260,-1091.68542074,0.00043885,120]
[360241220,1746652546294,-188.09573874,0.00043885,30]
[360241221,1746652546330,-179.48823576,0.00043885,120]
[360241222,1746652546365,-539.60445096,0.00043885,30]
[360241223,1746652546400,-502.91778103,0.00043885,30]
[360241224,1746652546439,-1025.97665451,0.00043885,30]
[360241225,1746652546474,-11000.0,0.00043885,30]
[360241226,1746652546513,-450.0,0.00043885,120]
[360241227,1746652546549,-6251.12489971,0.00043885,120]
[360241228,1746652546587,-5024.0,0.00043885,90]
[360241229,1746652546623,-295.0,0.00043885,120]
[360241230,1746652546661,-1461.00765371,0.00043885,60]
[360241231,1746652546699,-3233.63254077,0.00043885,60]
[360241232,1746652546735,-267.47308347,0.00043885,60]
[360241233,1746652546774,-3352.58809181,0.00043885,120]
[360241234,1746652546811,-389350.80401887,0.00043885,120]
[360241235,1746652546845,-304433.01741889,0.00043885,120]
[360241236,1746652546882,-112012.42293922,0.00043885,30]
[360241237,1746652546915,-1154.0,0.00043885,120]
[360241238,1746652546950,-5139.93,0.00043885,30]
[360241239,1746652546984,-1000.02,0.00043885,31]
[360241240,1746652547020,-5000.0,0.00043885,120]
[360241241,1746652547056,-5000.0,0.00043885,120]
[360241242,1746652547092,-5000.0,0.00043885,120]
[360241243,1746652547128,-5000.0,0.00043885,120]
[360241244,1746652547163,-5000.0,0.00043885,120]
[360241245,1746652547199,-5000.0,0.00043885,120]
[360241246,1746652547236,-5000.0,0.00043885,120]
[360241247,1746652547273,-5000.0,0.00043885,120]
[360241248,1746652547308,-5000.0,0.00043885,120]
[360241249,1746652547343,-5000.0,0.00043885,120]
[360241250,1746652547381,-190.97962663,0.00043885,120]
[360241251,1746652547421,-5000.0,0.00043885,120]
[360241252,1746652547457,-5000.0,0.00043885,120]
[360241253,1746652547494,-212.899999,0.00043885,30]
[360241254,1746652547529,-5000.0,0.00043885,120]
[360241255,1746652547564,-5000.0,0.00043885,120]
[360241256,1746652547599,-208.2,0.00043885,30]
[360241257,1746652547636,-5000.0,0.00043885,120]
[360241258,1746652547671,-500.0,0.00043885,120]
[360241259,1746652547707,-418.22865726,0.00043885,120]
[360241260,1746652547741,-5000.0,0.00043885,120]
[360241261,1746652547775,-5000.0,0.00043885,120]
[360241262,1746652547809,-5000.0,0.00043885,120]
[360241263,1746652547842,-5000.0,0.00043885,120]
[360241264,1746652547875,-193.70100188,0.00043885,60]
[360241265,1746652547907,-16800.0,0.00043885,120]
[360241266,1746652547939,-357.14041,0.00043885,120]
[360241267,1746652547972,-986.0,0.00043885,120]
[360241268,1746652548005,-692.70649961,0.00043885,120]
[360241269,1746652548037,-4000.0,0.00043885,30]
[360241270,1746652548070,-1000.0,0.00043885,30]
[360241271,1746652548104,-262.18801815,0.00043885,30]
[360241272,1746652548137,-201103.37,0.00043885,30]
[360241273,1746652548176,-946.02267557,0.00043885,30]
[360241274,1746652548213,-1332.81167111,0.00043885,120]
[360241275,1746652548247,-1000.0,0.00043885,120]
[360241276,1746652548284,-1000.0,0.00043885,120]
[360241277,1746652548321,-997.93,0.00043885,120]
[360241278,1746652548357,-2220.16306415,0.00043885,30]
[360241279,1746652548395,-836.97210929,0.00043885,120]
[360241280,1746652548433,-1000.0,0.00043885,31]
[360241281,1746652548469,-1410.91,0.00043885,120]
[360241282,1746652548504,-109017.34952123,0.00043885,30]
[360241283,1746652548543,-1450000.0,0.00043885,30]
[360241284,1746652548583,-8230.74681402,0.00043885,120]
[360241285,1746652548623,-1025.0,0.00043885,120]
[360241286,1746652548664,-1133.73473187,0.00043885,120]
[360241287,1746652548702,-321064.15139806,0.00043885,30]
[360241288,1746652554012,-4000000.0,0.00043885,30]
[360241289,1746652556619,1333.0,0.00029041,120]
[360241290,1746652557615,-573439.31258911,0.00043885,30]
[360241291,1746652557652,-507461.41520739,0.00043885,30]
[360241292,1746652557688,-101177.04462253,0.00043885,30]
[360241293,1746652557723,-14315.0,0.00043885,30]
[360241294,1746652557758,-1097.39450997,0.00043885,120]
[360241295,1746652557792,-502.77387871,0.00043885,30]
[360241296,1746652557825,-258.28208379,0.00043885,30]
[360241297,1746652557859,-256.00459006,0.00043885,30]
[360241298,1746652557894,-52344.6,0.00043885,30]
[360241299,1746652557929,-551.24213009,0.00043885,120]
[360241300,1746652557964,-1005246.35367826,0.00043885,30]
[360241301,1746652557998,-503631.4464705,0.00043885,120]
[360241302,1746652558032,-1000.0,0.00043885,31]
[360241303,1746652558067,-353212.0,0.00043885,60]
[360241304,1746652558104,-151.1164279,0.00043885,120]
[360241305,1746652558141,-6300.0,0.00043885,120]
[360241306,1746652558178,-573.0874951,0.00043885,120]
[360241307,1746652558213,-14060.28334715,0.00043885,120]
[360241308,1746652558250,-5000.0,0.00043885,120]
[360241309,1746652558283,-61725.73795662,0.00043885,30]
[360241310,1746652558319,-1676.0921113,0.00043885,120]
[360241311,1746652558357,-1001.7401014,0.00043885,120]
[360241312,1746652558395,-795019.07280012,0.00043885,30]
[360241313,1746652562595,-573496.29603295,0.00043885,30]
[360241314,1746652562632,-157.25233337,0.00043885,120]
[360241315,1746652562670,-23357.82630477,0.00043885,60]
[360241316,1746652562707,-2737.71443441,0.00043885,30]
[360241317,1746652562743,-181.0,0.00043885,120]
[360241318,1746652562781,-505518.14538136,0.00043885,30]
[360241319,1746652562816,-212328.29086443,0.00043885,60]
[360241320,1746652562852,-256.80652534,0.00043885,30]
[360241321,1746652562887,-570838.806689,0.00043885,30]
[360241322,1746652562922,-197116.97131302,0.00043885,30]
[360241323,1746652562956,-7499.999999,0.00043885,30]
[360241324,1746652562991,-227.82239818,0.00043885,120]
[360241325,1746652563025,-242809.72394385,0.00043885,60]
[360241326,1746652563062,-871589.60647039,0.00043885,60]
[360241327,1746652563359,-506.62470677,0.00043885,120]
[360241328,1746652563399,-2064.81141796,0.00043885,30]
[360241329,1746652563439,-500.0,0.00043885,120]
[360241330,1746652563479,-500.0,0.00043885,120]
[360241331,1746652563519,-500.0,0.00043885,120]
[360241332,1746652563558,-500.0,0.00043885,120]
[360241333,1746652563598,-500.0,0.00043885,120]
[360241334,1746652563637,-500.0,0.00043885,120]
[360241335,1746652563679,-500.0,0.00043885,120]
[360241336,1746652563719,-319.87,0.00043885,120]
[360241337,1746652563755,-5000.0,0.00043885,30]
[360241338,1746652563791,-600.0,0.00043885,90]
[360241339,1746652563828,-136935.56149289,0.00043885,30]
[360241340,1746652563865,-844.66470763,0.00043885,120]
[360241341,1746652563902,-649.5041646,0.00043885,120]
[360241342,1746652563939,-641462.70082008,0.00043885,30]
[360241343,1746652567967,-155167.70751128,0.00043885,30]
[360241344,1746652568005,-1000.71097306,0.00043885,120]
[360241345,1746652568044,-500.0,0.00043885,120]
[360241346,1746652568083,-500.0,0.00043885,120]
[360241347,1746652568122,-500.0,0.00043885,120]
[360241348,1746652568161,-172.83,0.00043885,120]
[360241349,1746652568198,-595.42,0.00043885,120]
[360241350,1746652568235,-6359.39003252,0.00043885,120]
[360241351,1746652568272,-3099.20018958,0.00043885,120]
[360241352,1746652568308,-2231.0,0.00043885,41]
[360241353,1746652568345,-10185.824936,0.00043885,30]
[360241354,1746652568382,-1074.0,0.00043885,30]
[360241355,1746652568420,-1074.0,0.00043885,30]
[360241356,1746652568461,-1074.0,0.00043885,30]
[360241357,1746652568498,-1074.0,0.00043885,30]
[360241358,1746652568535,-1074.0,0.00043885,30]
[360241359,1746652568572,-3814317.91635756,0.00043885,30]
[360241360,1746652571401,-1307518.01364244,0.00043885,30]
[360241361,1746652571437,-150.0,0.00043885,120]
[360241362,1746652571475,-1958.0,0.00043885,120]
[360241363,1746652571511,-5304.75265124,0.00043885,120]
[360241364,1746652571548,-350.0,0.00043885,120]
[360241365,1746652571584,-500.0,0.00043885,30]
[360241366,1746652571620,-500.0,0.00043885,30]
[360241367,1746652571656,-500.0,0.00043885,30]
[360241368,1746652571692,-500.0,0.00043885,30]
[360241369,1746652571728,-500.0,0.00043885,30]
[360241370,1746652571777,-500.0,0.00043885,30]
[360241371,1746652571817,-500.0,0.00043885,30]
[360241372,1746652571853,-627.41000253,0.00043885,30]
[360241373,1746652571890,-1000.0,0.00043885,120]
[360241374,1746652571927,-1000.0,0.00043885,120]
[360241375,1746652571964,-1000.0,0.00043885,120]
[360241376,1746652572000,-1000.0,0.00043885,120]
[360241377,1746652572037,-1000.0,0.00043885,120]
[360241378,1746652572074,-1000.0,0.00043885,120]
[360241379,1746652572112,-1000.0,0.00043885,120]
[360241380,1746652572149,-1000.0,0.00043885,120]
[360241381,1746652572185,-1000.0,0.00043885,120]
[360241382,1746652572221,-1000.0,0.00043885,120]
[360241383,1746652572258,-1000.0,0.00043885,120]
[360241384,1746652572294,-1000.0,0.00043885,120]
[360241385,1746652572331,-1000.0,0.00043885,120]
[360241386,1746652572366,-1000.0,0.00043885,120]
[360241387,1746652572404,-1000.0,0.00043885,120]
[360241388,1746652572441,-1000.0,0.00043885,120]
[360241389,1746652572482,-1000.0,0.00043885,120]
[360241390,1746652572518,-1000.0,0.00043885,120]
[360241391,1746652572554,-1000.0,0.00043885,120]
[360241392,1746652572592,-1000.0,0.00043885,120]
[360241393,1746652572628,-1000.0,0.00043885,120]
[360241394,1746652572665,-470.1255147,0.00043885,120]
[360241395,1746652572701,-764.67339766,0.00043885,30]
[360241396,1746652574258,3000.0,0.00043885,30]
[360241397,1746652574602,1172.0,0.00043885,30]
[360241398,1746652574941,1000.0,0.0001889,2]
[360241399,1746652652010,544.01,0.00017388,2]
[360241400,1746652669826,300.0,0.000193,7]
[360241401,1746652671927,600.0,0.000194,7]
[360241402,1746652674032,900.0,0.000195,7]
[360241403,1746652676136,1200.0,0.000196,7]
[360241404,1746652678275,1500.0,0.000197,7]
[360241405,1746652680383,300.0,0.000198,7]
[360241406,1746652681132,666.66666,0.00019999,23]
[360241407,1746652682527,300.0,0.000199,7]
[360241408,1746652753905,150.0,0.0003,30]
[360241411,1746652986723,666.66666,0.000248,34]
[360241412,1746652986777,666.66667,0.000273,39]
[360241413,1746652986832,666.66667,0.000298,44]
[360241414,1746653000618,500.0,0.00030096,120]
[360241415,1746653127747,695.13685926,0.0003,30]
[360241416,1746653128771,430.44660489,0.00023,120]
[360241417,1746653133078,1289.94995162,0.0002,120]
[360241418,1746653134904,1041.9466664,0.0003013,120]
[360241419,1746653147200,1254.36079189,0.00027251,30]
[360241420,1746653213210,156.45,0.00019306,2]
[360241421,1746653227475,1370637.52506984,0.0001899,2]
[360241422,1746653227503,155781.98782578,0.0001899,2]
[360241423,1746653233590,1039.45096261,0.0003,120]
[360241425,1746653269745,187.77026915,0.00028,120]
[360241426,1746653271378,1190.56959557,0.0003,120]
[360241427,1746653276827,2020.0,0.0002,120]
[360241428,1746653292004,666.66666,0.0002595,36]
[360241429,1746653316703,291.81422211,0.00028799,120]
[360241430,1746653319364,1925.55651568,0.0003,120]
[360241431,1746653319772,156.82520806,0.0003,120]
[360241432,1746653328954,653.77886679,0.0002,120]
[360241433,1746653341000,1333.0,0.00029041,120]
[360241434,1746653353990,640.0,0.00019306,2]
[360241435,1746653354660,640.0,0.00026546,120]
[360241436,1746653354863,640.0,0.00028959,120]
[360241450,1746653431739,-544.01,0.00019652,2]
[360241451,1746653431749,-1223.25623752,0.000197,2]
[360241452,1746653431761,-690.45021652,0.000197,2]
[360241453,1746653431796,-898.46097204,0.000197,2]
[360241454,1746653431857,-2812.88257392,0.000197,2]
[360241455,1746653431867,-300.0,0.00019748,2]
[360241456,1746653431878,-1200.0,0.00019748,2]
[360241457,1746653431888,-300.0,0.00019748,2]
[360241458,1746653431899,-363.0,0.00019749,2]
[360241459,1746653431909,-764.0,0.00019749,2]
[360241460,1746653431919,-414.97436728,0.0001975,2]
[360241461,1746653431938,-2027.76,0.0001975,2]
[360241462,1746653431950,-1914.77897548,0.0001975,2]
[360241520,1746653437824,-282.6119774,0.0001975,2]
[360241521,1746653437935,-700.50967586,0.0001975,2]
[360241522,1746653437948,-43061.96889967,0.0001975,2]
[360241526,1746653439937,-588.58,0.0001975,2]
[360241527,1746653440215,-37233.07155023,0.0001975,2]
[360241528,1746653440226,-200.0,0.00019784,2]
[360241529,1746653440236,-6113.3599535,0.00019785,2]
[360241530,1746653440247,-1685.547,0.00019795,2]
[360241531,1746653440258,-179.985,0.00019795,2]
[360241532,1746653440269,-26807.5033,0.00019798,2]
[360241533,1746653440280,-2628.5352,0.00019799,2]
[360241534,1746653440290,-6667.99907103,0.00019831,2]
[360241535,1746653440300,-200.0,0.00019841,2]
[360241536,1746653440311,-9999.99,0.00019841,2]
[360241537,1746653440320,-4007.67,0.00019841,2]
[360241538,1746653440331,-150.99,0.00019841,2]
[360241539,1746653440340,-500.0,0.00019873,2]
[360241540,1746653440351,-150.99,0.00019873,2]
[360241541,1746653440364,-999.99,0.00019873,2]
[360241542,1746653440375,-5831.92,0.00019873,2]
[360241543,1746653440384,-884.05,0.00019873,2]
[360241544,1746653440394,-500.0,0.00019873,2]
[360241545,1746653440403,-500.0,0.00019873,2]
[360241546,1746653440415,-6113.3599535,0.00019889,2]
[360241547,1746653440425,-173.93907232,0.00019898,2]
[360241548,1746653440436,-323.5865,0.00019898,2]
[360241549,1746653440446,-3990.309,0.00019899,2]
[360241550,1746653440456,-178.79757196,0.00019899,2]
[360241551,1746653440467,-151.87337538,0.000199,2]
[360241552,1746653440480,-2428.63787411,0.000199,2]
[360241553,1746653440491,-173.93907232,0.000199,2]
[360241554,1746653440502,-5559.53895796,0.000199,2]
[360241555,1746653440512,-221.806236,0.00019966,2]
[360241556,1746653440523,-171.826855,0.00019966,2]
[360241557,1746653440532,-1877.253186,0.00019966,2]
[360241558,1746653440541,-221.806236,0.0001997,2]
[360241559,1746653440551,-1877.253186,0.0001997,2]
[360241560,1746653440561,-221.806236,0.00019971,2]
[360241561,1746653440570,-1877.253186,0.00019971,2]
[360241562,1746653440580,-502.08209674,0.00019973,2]
[360241563,1746653440590,-500.0,0.00019973,2]
[360241564,1746653440599,-636.0,0.00019973,2]
[360241565,1746653440609,-500.0,0.00019973,2]
[360241566,1746653440619,-500.0,0.00019973,2]
[360241567,1746653440628,-500.0,0.00019973,2]
[360241568,1746653440638,-500.0,0.00019973,2]
[360241569,1746653440648,-303.82397077,0.00019973,2]
[360241570,1746653440657,-500.0,0.00019973,2]
[360241571,1746653440667,-500.0,0.00019973,2]
[360241572,1746653440676,-500.0,0.00019973,2]
[360241573,1746653440685,-221.806236,0.00019979,2]
[360241574,1746653440695,-1877.253186,0.00019979,2]
[360241575,1746653440710,-221.806236,0.00019983,2]
[360241576,1746653440719,-221.806236,0.00019983,2]
[360241577,1746653440729,-171.826855,0.00019983,2]
[360241578,1746653440739,-1877.253186,0.00019983,2]
[360241579,1746653440749,-1877.253186,0.00019983,2]
[360241580,1746653440767,-221.806236,0.00019985,2]
[360241581,1746653440783,-1877.253186,0.00019985,2]
[360241582,1746653440792,-450.0,0.00019997,2]
[360241583,1746653440803,-450.0,0.00019997,2]
[360241584,1746653440812,-450.0,0.00019997,2]
[360241585,1746653440823,-450.0,0.00019997,2]
[360241586,1746653440833,-450.0,0.00019997,2]
[360241587,1746653440842,-450.0,0.00019997,2]
[360241588,1746653440852,-450.0,0.00019997,2]
[360241589,1746653440863,-450.0,0.00019997,2]
[360241590,1746653440873,-1040.57,0.00019997,2]
[360241591,1746653440883,-450.0,0.00019997,2]
[360241592,1746653440893,-450.0,0.00019997,2]
[360241593,1746653440902,-450.0,0.00019997,2]
[360241594,1746653440912,-450.0,0.00019997,2]
[360241595,1746653440922,-778.68,0.00019997,2]
[360241596,1746653440932,-450.0,0.00019997,2]
[360241597,1746653440943,-450.0,0.00019997,2]
[360241598,1746653440953,-1330.35,0.00019997,2]
[360241599,1746653440964,-495.93,0.00019997,2]
[360241600,1746653440974,-450.0,0.00019997,2]
[360241601,1746653440984,-450.0,0.00019997,2]
[360241602,1746653440994,-450.0,0.00019997,2]
[360241603,1746653441005,-450.0,0.00019997,2]
[360241604,1746653441015,-1883.21,0.00019997,2]
[360241605,1746653441026,-450.0,0.00019997,2]
[360241606,1746653441036,-1101.25,0.00019997,2]
[360241607,1746653441046,-1416.63,0.00019997,2]
[360241608,1746653441055,-1508.02,0.00019997,2]
[360241609,1746653441065,-1337.0,0.00019997,2]
[360241610,1746653441077,-1644.91,0.00019997,2]
[360241611,1746653441088,-450.0,0.00019997,2]
[360241612,1746653441099,-450.0,0.00019997,2]
[360241613,1746653441114,-1531.59,0.00019997,2]
[360241614,1746653441125,-450.0,0.00019997,2]
[360241615,1746653441135,-450.0,0.00019997,2]
[360241616,1746653441145,-1266.95,0.00019997,2]
[360241617,1746653441156,-450.0,0.00019997,2]
[360241618,1746653441166,-450.0,0.00019997,2]
[360241619,1746653441177,-450.0,0.00019997,2]
[360241620,1746653441186,-450.0,0.00019997,2]
[360241621,1746653441201,-443.23,0.00019997,2]
[360241622,1746653441213,-450.0,0.00019997,2]
[360241623,1746653441223,-221.806236,0.00019997,2]
[360241624,1746653441234,-221.806236,0.00019997,2]
[360241625,1746653441246,-450.0,0.00019997,2]
[360241626,1746653441257,-450.0,0.00019997,2]
[360241627,1746653441266,-450.0,0.00019997,2]
[360241628,1746653441277,-450.0,0.00019997,2]
[360241629,1746653441288,-2346.14,0.00019997,2]
[360241630,1746653441299,-450.0,0.00019997,2]
[360241631,1746653441309,-290.67,0.00019997,2]
[360241632,1746653441319,-500.0,0.00019997,2]
[360241633,1746653441328,-2306.26,0.00019997,2]
[360241634,1746653441339,-450.0,0.00019997,2]
[360241635,1746653441349,-450.0,0.00019997,2]
[360241636,1746653441361,-445.81,0.00019997,2]
[360241637,1746653441372,-1877.253186,0.00019997,2]
[360241638,1746653441382,-1877.253186,0.00019997,2]
[360241639,1746653441392,-500.0,0.00019997,2]
[360241640,1746653441403,-450.0,0.00019997,2]
[360241641,1746653441413,-500.0,0.00019997,2]
[360241642,1746653441423,-500.0,0.00019997,2]
[360241643,1746653441434,-500.0,0.00019997,2]
[360241644,1746653441445,-523.73,0.00019997,2]
[360241645,1746653441457,-450.0,0.00019997,2]
[360241646,1746653441467,-450.0,0.00019997,2]
[360241647,1746653441477,-500.0,0.00019997,2]
[360241648,1746653441487,-1581.84,0.00019997,2]
[360241649,1746653441497,-450.0,0.00019997,2]
[360241650,1746653441507,-394.77,0.00019997,2]
[360241651,1746653441517,-450.0,0.00019998,2]
[360241652,1746653441527,-155.60140968,0.00019998,2]
[360241653,1746653441539,-550.0,0.00019998,2]
[360241654,1746653441549,-550.0,0.00019998,2]
[360241655,1746653441559,-550.0,0.00019998,2]
[360241656,1746653441570,-550.0,0.00019998,2]
[360241657,1746653441580,-550.0,0.00019998,2]
[360241658,1746653441590,-572.56649993,0.00019998,2]
[360241659,1746653441600,-450.0,0.00019998,2]
[360241660,1746653441610,-450.0,0.00019998,2]
[360241661,1746653441620,-900.12,0.00019998,2]
[360241662,1746653441631,-450.0,0.00019998,2]
[360241663,1746653441646,-479.40634295,0.00019998,2]
[360241664,1746653441656,-450.0,0.00019998,2]
[360241665,1746653441666,-450.0,0.00019998,2]
[360241666,1746653441677,-450.0,0.00019998,2]
[360241667,1746653441687,-450.0,0.00019998,2]
[360241668,1746653441700,-450.0,0.00019998,2]
[360241669,1746653441712,-450.0,0.00019998,2]
[360241670,1746653441722,-450.0,0.00019998,2]
[360241671,1746653441733,-450.0,0.00019998,2]
[360241672,1746653441744,-450.0,0.00019998,2]
[360241673,1746653441755,-450.0,0.00019998,2]
[360241674,1746653441766,-450.0,0.00019998,2]
[360241675,1746653441777,-450.0,0.00019998,2]
[360241676,1746653441788,-1040.57,0.00019998,2]
[360241677,1746653441806,-1040.57,0.00019998,2]
[360241678,1746653441816,-1040.57,0.00019998,2]
[360241679,1746653441827,-450.0,0.00019998,2]
[360241680,1746653441838,-450.0,0.00019998,2]
[360241681,1746653441848,-450.0,0.00019998,2]
[360241682,1746653441859,-450.0,0.00019998,2]
[360241683,1746653441870,-450.0,0.00019998,2]
[360241684,1746653441880,-450.0,0.00019998,2]
[360241685,1746653441891,-450.0,0.00019998,2]
[360241686,1746653441901,-450.0,0.00019998,2]
[360241687,1746653441911,-450.0,0.00019998,2]
[360241688,1746653441921,-450.0,0.00019998,2]
[360241689,1746653441931,-450.0,0.00019998,2]
[360241690,1746653441941,-450.0,0.00019998,2]
[360241691,1746653441951,-450.0,0.00019998,2]
[360241692,1746653441962,-245.51823283,0.00019998,2]
[360241693,1746653441973,-450.0,0.00019998,2]
[360241694,1746653441983,-450.0,0.00019998,2]
[360241695,1746653441993,-450.0,0.00019998,2]
[360241696,1746653442003,-866.79,0.00019998,2]
[360241697,1746653442013,-450.0,0.00019998,2]
[360241698,1746653442023,-450.0,0.00019998,2]
[360241699,1746653442033,-450.0,0.00019998,2]
[360241700,1746653442042,-450.0,0.00019998,2]
[360241701,1746653442053,-450.0,0.00019998,2]
[360241702,1746653442063,-898.97,0.00019998,2]
[360241703,1746653442074,-450.0,0.00019998,2]
[360241704,1746653442084,-778.68,0.00019998,2]
[360241705,1746653442101,-778.68,0.00019998,2]
[360241706,1746653442111,-778.68,0.00019998,2]
[360241707,1746653442122,-450.0,0.00019998,2]
[360241708,1746653442132,-450.0,0.00019998,2]
[360241709,1746653442142,-450.0,0.00019998,2]
[360241710,1746653442152,-500.0,0.00019998,2]
[360241711,1746653442162,-450.0,0.00019998,2]
[360241712,1746653442425,-500.0,0.00019998,2]
[360241713,1746653442438,-500.0,0.00019998,2]
[360241714,1746653442448,-500.0,0.00019998,2]
[360241715,1746653442459,-500.0,0.00019998,2]
[360241716,1746653442469,-500.0,0.00019998,2]
[360241717,1746653442479,-500.0,0.00019998,2]
[360241718,1746653442489,-500.0,0.00019998,2]
[360241719,1746653442499,-500.0,0.00019998,2]
[360241720,1746653442510,-640.24333727,0.00019998,2]
[360241721,1746653442519,-450.0,0.00019998,2]
[360241722,1746653442530,-548.90472056,0.00019998,2]
[360241723,1746653442540,-450.0,0.00019998,2]
[360241724,1746653442549,-450.0,0.00019998,2]
[360241725,1746653442559,-450.0,0.00019998,2]
[360241726,1746653442569,-450.0,0.00019998,2]
[360241728,1746653442579,-450.0,0.00019998,2]
[360241729,1746653442589,-450.0,0.00019998,2]